bitfinex-derivatives/quotes_SOLF0:USTF0_20260311
["timestamp","ask_amount","ask_price","bid_price","bid_amount"]
[1773199394879,2.91872234,85.619,85.586,5.99526379]
[1773199395178,2.91872234,85.618,85.586,5.99526379]
[1773199395480,2.61676315,85.61,85.586,5.99526379]
[1773199396280,2.91872449,85.609,85.586,5.99526379]
[1773199396580,2.61676315,85.62,85.586,5.99526379]
[1773199396777,2.91872449,85.619,85.586,5.99526379]
[1773199396979,2.91872449,85.618,85.586,5.99526379]
[1773199397177,2.91872449,85.617,85.586,5.99526379]
[1773199397378,2.61676315,85.62,85.561,6.0131301]
[1773199397379,2.91872449,85.616,85.561,6.0131301]
[1773199397677,2.91872449,85.615,85.561,6.0131301]
[1773199397878,2.91872449,85.614,85.561,6.0131301]
[1773199398077,2.61676315,85.62,85.56,2.61676315]
[1773199398078,2.91872449,85.613,85.57,6.0131301]
[1773199398279,2.91872449,85.612,85.57,6.0131301]
[1773199398476,2.91872449,85.611,85.57,6.0131301]
[1773199398676,2.91872449,85.61,85.57,6.0131301]
[1773199398879,2.61676315,85.62,85.573,6.01023869]
[1773199399080,2.91863985,85.619,85.58,2.61676315]
[1773199399276,2.91863985,85.618,85.581,6.01023869]
[1773199399470,2.91863985,85.617,85.581,6.01023869]
[1773199399676,2.91863985,85.616,85.581,6.01023869]
[1773199399972,2.91863985,85.615,85.581,6.01023869]
[1773199400175,2.91863985,85.614,85.581,6.01023869]
[1773199400376,2.91863985,85.613,85.581,6.01023869]
[1773199400578,2.91863985,85.612,85.581,6.01023869]
[1773199400876,10.51,85.623,85.581,6.01023869]
[1773199401079,2.91863968,85.622,85.581,6.01023869]
[1773199401381,2.91863968,85.621,85.581,6.01023869]
[1773199401581,5.53540283,85.62,85.581,6.01023869]
[1773199401780,2.91863968,85.619,85.581,6.01023869]
[1773199401981,2.91863968,85.618,85.581,6.01023869]
[1773199402185,2.91863968,85.617,85.581,6.01023869]
[1773199402384,2.91863968,85.616,85.581,6.01023869]
[1773199402579,2.91863968,85.615,85.581,6.01023869]
[1773199402782,2.91863968,85.614,85.581,6.01023869]
[1773199403082,2.91863968,85.613,85.581,6.01023869]
[1773199403382,2.91863968,85.612,85.581,6.01023869]
[1773199403682,2.91863968,85.611,85.581,6.01023869]
[1773199403881,2.61676315,85.62,85.581,6.01023869]
[1773199404083,2.91864115,85.619,85.581,6.01023869]
[1773199404280,2.91864115,85.618,85.581,6.01023869]
[1773199404480,2.91864115,85.617,85.581,6.01023869]
[1773199404681,2.91864115,85.616,85.581,6.01023869]
[1773199404881,2.91864115,85.615,85.581,6.01023869]
[1773199405084,2.91864115,85.614,85.581,6.01023869]
[1773199405285,2.91864115,85.613,85.581,6.01023869]
[1773199405485,2.91864115,85.612,85.581,6.01023869]
[1773199405685,2.91864115,85.611,85.581,6.01023869]
[1773199405882,2.61676315,85.62,85.581,6.01023869]
[1773199406086,2.91863933,85.619,85.581,6.01023869]
[1773199406288,2.61676315,85.62,85.581,6.01023869]
[1773199406289,2.91863933,85.618,85.581,6.01023869]
[1773199406488,2.91863933,85.617,85.581,6.01023869]
[1773199406682,2.91863933,85.616,85.581,6.01023869]
[1773199406988,2.91863933,85.615,85.581,6.01023869]
[1773199407189,2.91863933,85.614,85.581,6.01023869]
[1773199407384,2.91863933,85.613,85.581,6.01023869]
[1773199407585,2.91863933,85.612,85.581,6.01023869]
[1773199407780,2.91863933,85.611,85.581,6.01023869]
[1773199407985,2.61676315,85.62,85.581,6.01023869]
[1773199408288,2.9186393,85.619,85.581,6.01023869]
[1773199408484,2.9186393,85.618,85.581,6.01023869]
[1773199408786,2.9186393,85.617,85.581,6.01023869]
[1773199408987,2.9186393,85.616,85.581,6.01023869]
[1773199409186,2.9186393,85.615,85.581,6.01023869]
[1773199409390,2.61676315,85.62,85.581,6.01023869]
[1773199409586,2.9186393,85.619,85.581,6.01023869]
[1773199409779,2.9186393,85.618,85.581,6.01023869]
[1773199409980,2.9186393,85.617,85.581,6.01023869]
[1773199410288,2.9186393,85.616,85.581,6.01023869]
[1773199410486,2.9186393,85.615,85.581,6.01023869]
[1773199410689,2.9186393,85.614,85.581,6.01023869]
[1773199410989,2.9186393,85.613,85.581,6.01023869]
[1773199411188,2.61676315,85.62,85.581,6.01023869]
[1773199411389,2.91872362,85.619,85.581,6.01023869]
[1773199411586,10.511,85.616,85.581,6.01023869]
[1773199411795,2.61676315,85.61,85.581,6.01023869]
[1773199412787,2.61676315,85.6,85.568,6.03026241]
[1773199412988,2.61676315,85.59,85.557,6.03026241]
[1773199413694,2.61676315,85.6,85.557,6.03026241]
[1773199413893,2.91945024,85.599,85.557,6.03026241]
[1773199414089,2.91945024,85.598,85.557,6.03026241]
[1773199414294,2.61676315,85.6,85.557,6.03026241]
[1773199414590,2.61676315,85.59,85.541,6.0309856]
[1773199414791,2.91945318,85.589,85.551,6.0309856]
[1773199415093,10.514,85.595,85.551,6.0309856]
[1773199415094,2.91945318,85.588,85.551,6.0309856]
[1773199415290,10.514,85.595,85.551,6.0309856]
[1773199415495,2.91975481,85.594,85.551,6.0309856]
[1773199415688,2.91975481,85.593,85.551,6.0309856]
[1773199415887,2.91975481,85.592,85.551,6.0309856]
[1773199416086,10.514,85.595,85.551,6.0309856]
[1773199416393,2.91970289,85.594,85.551,6.0309856]
[1773199416693,2.61676315,85.59,85.551,6.0309856]
[1773199420101,10.514,85.595,85.551,6.0309856]
[1773199420306,2.61676315,85.59,85.551,6.0309856]
[1773199423518,10.514,85.595,85.551,6.0309856]
[1773199423716,2.91970269,85.594,85.551,6.0309856]
[1773199423914,2.91970269,85.593,85.551,6.0309856]
[1773199424118,10.514,85.595,85.551,6.0309856]
[1773199424319,2.91970269,85.594,85.551,6.0309856]
[1773199424520,2.91970269,85.593,85.551,6.0309856]
[1773199424717,10.514,85.595,85.551,6.0309856]
[1773199424918,2.91970269,85.594,85.551,6.0309856]
[1773199425118,2.91970269,85.593,85.551,6.0309856]
[1773199425318,10.514,85.595,85.551,6.0309856]
[1773199425517,2.91970271,85.594,85.551,6.0309856]
[1773199425717,2.91970271,85.593,85.551,6.0309856]
[1773199426018,2.61676315,85.59,85.551,6.0309856]
[1773199426619,10.514,85.595,85.551,6.0309856]
[1773199426819,2.91970236,85.594,85.551,6.0309856]
[1773199427020,2.61676315,85.6,85.551,6.0309856]
[1773199427220,2.91970287,85.599,85.551,6.0309856]
[1773199427422,2.91970287,85.598,85.551,6.0309856]
[1773199427715,10.513,85.599,85.551,6.0309856]
[1773199427716,2.91970287,85.597,85.551,6.0309856]
[1773199427921,2.91970287,85.596,85.551,6.0309856]
[1773199428118,2.91970287,85.595,85.551,6.0309856]
[1773199428318,10.513,85.599,85.551,6.0309856]
[1773199428319,2.91970287,85.594,85.551,6.0309856]
[1773199428519,2.91970287,85.593,85.551,6.0309856]
[1773199428719,2.91970287,85.592,85.551,6.0309856]
[1773199429022,10.513,85.599,85.551,6.0309856]
[1773199429222,2.91970287,85.598,85.551,6.0309856]
[1773199429520,2.91970287,85.597,85.551,6.0309856]
[1773199429720,2.91970287,85.596,85.551,6.0309856]
[1773199429921,10.513,85.599,85.551,6.0309856]
[1773199429922,2.91970287,85.595,85.551,6.0309856]
[1773199430223,2.91970287,85.594,85.551,6.0309856]
[1773199430424,2.91970287,85.593,85.551,6.0309856]
[1773199430626,2.91970287,85.592,85.551,6.0309856]
[1773199430824,2.91970287,85.591,85.551,6.0309856]
[1773199431026,2.91970287,85.59,85.551,6.0309856]
[1773199431225,2.91970234,85.589,85.551,6.0309856]
[1773199431427,10.513,85.599,85.551,6.0309856]
[1773199431726,2.91970234,85.598,85.551,6.0309856]
[1773199431926,2.91970234,85.597,85.551,6.0309856]
[1773199432116,2.91970234,85.596,85.551,6.0309856]
[1773199432317,2.91970234,85.595,85.551,6.0309856]
[1773199432522,2.91970234,85.594,85.551,6.0309856]
[1773199432824,2.61676315,85.59,85.551,6.0309856]
[1773199433024,2.91970234,85.589,85.551,6.0309856]
[1773199433224,2.61676315,85.59,85.551,6.0309856]
[1773199433225,2.91970234,85.588,85.551,6.0309856]
[1773199433424,2.91970234,85.587,85.551,6.0309856]
[1773199433617,2.91970234,85.586,85.551,6.0309856]
[1773199433814,2.91970234,85.585,85.551,6.0309856]
[1773199434015,2.91970234,85.584,85.551,6.0309856]
[1773199434221,2.61676315,85.59,85.551,6.0309856]
[1773199434419,2.91999862,85.589,85.551,6.0309856]
[1773199434616,2.91999862,85.588,85.551,6.0309856]
[1773199434820,2.91999862,85.587,85.551,6.0309856]
[1773199435027,2.91999862,85.586,85.551,6.0309856]
[1773199435224,2.91999862,85.585,85.551,6.0309856]
[1773199435423,2.91999862,85.584,85.551,6.0309856]
[1773199435627,2.92004082,85.583,85.551,6.0309856]
[1773199435822,2.61676315,85.59,85.551,6.0309856]
[1773199436122,2.9200427,85.589,85.551,6.0309856]
[1773199436322,2.9200427,85.588,85.551,6.0309856]
[1773199436626,2.9200427,85.587,85.551,6.0309856]
[1773199436826,2.9200427,85.586,85.551,6.0309856]
[1773199437030,2.61676315,85.59,85.551,6.0309856]
[1773199437031,2.9200427,85.585,85.551,6.0309856]
[1773199437220,2.9200427,85.584,85.551,6.0309856]
[1773199437423,2.61676315,85.59,85.551,6.0309856]
[1773199437726,2.92004252,85.589,85.551,6.0309856]
[1773199438023,2.92004252,85.588,85.551,6.0309856]
[1773199438228,2.92004252,85.587,85.551,6.0309856]
[1773199438423,2.92004252,85.586,85.551,6.0309856]
[1773199438730,2.92004252,85.585,85.551,6.0309856]
[1773199438931,2.92004252,85.584,85.551,6.0309856]
[1773199439129,2.92004252,85.583,85.551,6.0309856]
[1773199439429,10.514,85.589,85.551,6.0309856]
[1773199439629,2.92000032,85.588,85.551,6.0309856]
[1773199439826,2.92000032,85.587,85.551,6.0309856]
[1773199440124,2.92000032,85.586,85.551,6.0309856]
[1773199440325,2.92000032,85.585,85.551,6.0309856]
[1773199440526,2.61676315,85.58,85.539,5.99798055]
[1773199440824,21.022,85.619,85.53,199.14218567]
[1773199440825,2.61676315,85.57,85.53,199.14218567]
[1773199441434,2.92061427,85.569,85.53,199.14218567]
[1773199441724,2.92061427,85.568,85.53,199.14218567]
[1773199441930,2.92061427,85.567,85.53,205.15181921]
[1773199442127,13.13376315,85.57,85.53,205.15181921]
[1773199442434,2.92071325,85.569,85.531,6.00963354]
[1773199442628,2.92071325,85.568,85.531,6.00963354]
[1773199442831,2.92071325,85.567,85.531,6.00963354]
[1773199443030,2.92071325,85.566,85.531,6.00963354]
[1773199443230,2.92071325,85.565,85.531,6.00963354]
[1773199443432,13.13376315,85.57,85.531,6.00963354]
[1773199443633,2.92067274,85.569,85.531,6.00963354]
[1773199443832,2.92067274,85.568,85.531,6.00963354]
[1773199444034,2.92067274,85.567,85.531,6.00963354]
[1773199444333,8.72288533,85.597,85.551,5.98540408]
[1773199444535,2.92000945,85.596,85.561,5.98876076]
[1773199444734,2.61676315,85.61,85.561,5.98876076]
[1773199444735,2.92000945,85.595,85.561,5.98876076]
[1773199444927,2.92000945,85.594,85.561,5.98876076]
[1773199445123,2.92000945,85.593,85.561,5.98876076]
[1773199445330,2.92000945,85.592,85.561,5.98876076]
[1773199445637,2.92000945,85.591,85.561,5.98876076]
[1773199445834,2.92000945,85.59,85.561,5.98876076]
[1773199446134,2.92000945,85.589,85.561,5.98876076]
[1773199446335,2.92000945,85.588,85.561,5.98876076]
[1773199446536,10.513,85.603,85.561,5.98876076]
[1773199446736,2.91969766,85.602,85.561,5.98876076]
[1773199447034,2.91969766,85.601,85.561,5.98876076]
[1773199447234,2.91969766,85.6,85.561,5.98876076]
[1773199447533,2.91969766,85.599,85.561,5.98876076]
[1773199447734,2.91969766,85.598,85.561,5.98876076]
[1773199447926,2.91969766,85.597,85.561,5.98876076]
[1773199448126,2.91969766,85.596,85.561,5.98876076]
[1773199448331,2.91969766,85.595,85.561,5.98876076]
[1773199448532,2.91969766,85.594,85.561,5.98876076]
[1773199448732,2.91969766,85.593,85.561,5.98876076]
[1773199448928,2.91969766,85.592,85.561,5.98876076]
[1773199449134,2.91969766,85.591,85.561,5.98876076]
[1773199449334,2.91969766,85.59,85.561,5.98876076]
[1773199449538,2.91969766,85.589,85.561,5.98876076]
[1773199449736,2.91969766,85.588,85.561,5.98876076]
[1773199449937,10.513,85.603,85.561,5.98876076]
[1773199450239,2.91969817,85.602,85.561,5.98876076]
[1773199450440,2.91969817,85.601,85.561,5.98876076]
[1773199450636,2.91969817,85.6,85.561,5.98876076]
[1773199450841,2.91969817,85.599,85.561,5.98876076]
[1773199451141,2.91969817,85.598,85.561,5.98876076]
[1773199451442,2.91969799,85.597,85.561,5.98876076]
[1773199451638,2.91969799,85.596,85.561,5.98876076]
[1773199451838,2.91969799,85.595,85.561,5.98876076]
[1773199452039,2.91969799,85.594,85.561,5.98876076]
[1773199452240,2.91969799,85.593,85.561,5.98876076]
[1773199452443,2.91969799,85.592,85.561,5.98876076]
[1773199452641,2.91969799,85.591,85.561,5.98876076]
[1773199452941,2.91969799,85.59,85.561,5.98876076]
[1773199453143,2.91969799,85.589,85.561,5.98876076]
[1773199453342,2.91969799,85.588,85.561,5.98876076]
[1773199453642,2.91969799,85.587,85.561,5.98876076]
[1773199453840,2.91969799,85.586,85.561,5.98876076]
[1773199454041,2.91969799,85.585,85.561,5.98876076]
[1773199454339,2.91969799,85.584,85.561,5.98876076]
[1773199454534,2.91969799,85.583,85.561,5.98876076]
[1773199454735,2.91969799,85.582,85.561,5.98876076]
[1773199454941,10.513,85.603,85.561,5.98876076]
[1773199455134,2.91969731,85.602,85.561,5.98876076]
[1773199455332,2.91969731,85.601,85.561,5.98876076]
[1773199455536,2.91969731,85.6,85.561,5.98876076]
[1773199455842,2.91969731,85.599,85.561,5.98876076]
[1773199456042,2.91969731,85.598,85.561,5.98876076]
[1773199456241,2.91969731,85.597,85.561,5.98876076]
[1773199456542,2.91969731,85.596,85.561,5.98876076]
[1773199456749,2.91969731,85.595,85.571,5.9849779]
[1773199456944,2.91969731,85.594,85.571,5.9849779]
[1773199457142,2.91969731,85.593,85.571,5.9849779]
[1773199457437,2.91969731,85.592,85.571,5.9849779]
[1773199457636,2.91969731,85.591,85.571,5.9849779]
[1773199457843,2.91969731,85.59,85.571,5.9849779]
[1773199458047,2.91969731,85.589,85.571,5.9849779]
[1773199458243,2.91969731,85.588,85.571,5.9849779]
[1773199458444,2.91969731,85.587,85.571,5.9849779]
[1773199458746,2.91969731,85.586,85.571,5.9849779]
[1773199458939,2.91969731,85.585,85.571,5.9849779]
[1773199459140,2.91969731,85.584,85.571,5.9849779]
[1773199459447,2.62019461,85.61,85.571,5.9849779]
[1773199459646,8.73029933,85.609,85.571,5.9849779]
[1773199459846,8.73029933,85.608,85.571,5.9849779]
[1773199460046,8.73029933,85.607,85.571,5.9849779]
[1773199460247,8.73029933,85.606,85.571,5.9849779]
[1773199460546,8.73029933,85.605,85.571,5.9849779]
[1773199460747,8.73029933,85.604,85.571,5.9849779]
[1773199460949,10.513,85.598,85.559,4.51137128]
[1773199461149,2.62019461,85.59,85.55,2.62019461]
[1773199462347,10.514,85.588,85.55,2.62019461]
[1773199464145,10.514,85.596,85.55,2.62019461]
[1773199464347,8.73145703,85.595,85.551,4.50345786]
[1773199464651,10.514,85.596,85.561,4.50345786]
[1773199465952,10.512,85.605,85.561,4.50345786]
[1773199466150,8.73061048,85.604,85.561,4.50345786]
[1773199466351,8.73061048,85.603,85.561,4.50345786]
[1773199466552,8.73061048,85.602,85.561,4.50345786]
[1773199466853,8.73061048,85.602,85.53,199.14218567]
[1773199466854,8.73061048,85.601,85.571,4.48022877]
[1773199467049,10.511,85.613,85.571,4.48022877]
[1773199467346,8.73022841,85.612,85.571,4.48022877]
[1773199467549,8.73022841,85.611,85.571,4.48022877]
[1773199467853,8.73022841,85.61,85.571,4.48022877]
[1773199468052,8.73022841,85.609,85.571,4.48022877]
[1773199468243,8.73022841,85.608,85.571,4.48022877]
[1773199468445,8.73022841,85.607,85.571,4.48022877]
[1773199468645,2.62019461,85.63,85.581,4.47074598]
[1773199468846,8.72804188,85.629,85.581,4.47074598]
[1773199469046,8.72804188,85.628,85.581,4.47074598]
[1773199469244,8.72804188,85.627,85.581,4.47074598]
[1773199469445,8.72804188,85.626,85.581,4.47074598]
[1773199469650,8.72804188,85.625,85.581,4.47074598]
[1773199469956,8.72804188,85.624,85.581,4.47074598]
[1773199470254,8.72804188,85.623,85.581,4.47074598]
[1773199470454,8.72804188,85.622,85.581,4.47074598]
[1773199470655,8.72804188,85.621,85.581,4.47074598]
[1773199470851,8.72804188,85.62,85.581,4.47074598]
[1773199471045,10.51,85.623,85.581,4.47074598]
[1773199471247,8.72362063,85.622,85.581,4.47074598]
[1773199471447,11.64264017,85.621,85.581,4.47074598]
[1773199471652,2.91901954,85.62,85.581,4.47074598]
[1773199471852,2.91901954,85.619,85.591,4.47286123]
[1773199472048,2.91901954,85.618,85.591,4.47286123]
[1773199472251,2.91901954,85.618,85.58,2.62019461]
[1773199472252,2.91901954,85.617,85.58,7.09305584]
[1773199472456,2.91901954,85.616,85.58,7.09305584]
[1773199472651,2.91901954,85.615,85.58,7.09305584]
[1773199472849,2.91901954,85.614,85.58,7.09305584]
[1773199473053,2.91901954,85.613,85.58,2.62019461]
[1773199473257,2.91901954,85.612,85.581,4.47194659]
[1773199473459,2.62019461,85.62,85.581,4.47194659]
[1773199473753,2.91872455,85.619,85.581,4.47194659]
[1773199473957,2.91872455,85.618,85.581,4.47194659]
[1773199474155,2.91872455,85.617,85.581,4.47194659]
[1773199474347,2.91872455,85.616,85.581,4.47194659]
[1773199474553,2.91872455,85.615,85.581,4.47194659]
[1773199474758,2.62019461,85.62,85.581,4.47194659]
[1773199474759,2.91872455,85.614,85.581,4.47194659]
[1773199474958,2.91872455,85.613,85.581,4.47194659]
[1773199475259,2.62019461,85.61,85.569,4.46340805]
[1773199475459,2.91872455,85.609,85.569,4.46340805]
[1773199475761,10.512,85.605,85.569,4.46340805]
[1773199475958,2.91872455,85.604,85.56,2.62019461]
[1773199476160,2.91872455,85.603,85.56,7.08360266]
[1773199476457,2.91872455,85.602,85.56,7.08360266]
[1773199476658,2.91872455,85.601,85.56,7.08360266]
[1773199476959,2.91872455,85.6,85.56,7.08360266]
[1773199477159,2.91872455,85.599,85.561,4.47046115]
[1773199477359,10.514,85.596,85.561,4.47046115]
[1773199477658,2.91872455,85.595,85.561,4.47046115]
[1773199477854,2.91872455,85.594,85.561,4.47046115]
[1773199478055,10.514,85.596,85.561,4.47046115]
[1773199478352,2.91940625,85.595,85.561,4.47046115]
[1773199478556,2.91940625,85.594,85.561,4.47046115]
[1773199478756,10.514,85.596,85.561,4.47046115]
[1773199478958,2.91940625,85.595,85.561,4.47046115]
[1773199479257,2.91940625,85.594,85.561,4.47046115]
[1773199479557,10.514,85.596,85.561,4.47046115]
[1773199479759,2.91949061,85.595,85.561,4.47046115]
[1773199479952,2.91949061,85.594,85.561,4.47046115]
[1773199480150,2.91949061,85.593,85.561,4.47046115]
[1773199480353,2.91949061,85.592,85.551,4.4635366]
[1773199480560,2.91949061,85.591,85.551,4.4635366]
[1773199480761,2.91949061,85.59,85.551,4.4635366]
[1773199480957,2.91949061,85.589,85.551,4.4635366]
[1773199481255,2.62019461,85.6,85.551,4.4635366]
[1773199481461,2.91965011,85.599,85.551,4.4635366]
[1773199481662,2.91965011,85.598,85.551,4.4635366]
[1773199481959,2.91965011,85.597,85.551,4.4635366]
[1773199482151,2.91965011,85.596,85.551,4.4635366]
[1773199482352,2.91965011,85.595,85.551,4.4635366]
[1773199482558,2.91965011,85.594,85.551,4.4635366]
[1773199482861,2.91965011,85.593,85.551,4.4635366]
[1773199483062,2.91965011,85.592,85.551,4.4635366]
[1773199483262,2.91965011,85.591,85.551,4.4635366]
[1773199483462,2.91965011,85.59,85.551,4.4635366]
[1773199483660,2.91965011,85.589,85.551,4.4635366]
[1773199483860,13.13319461,85.6,85.551,4.4635366]
[1773199484060,2.91964992,85.599,85.551,4.4635366]
[1773199484260,2.91964992,85.598,85.551,4.4635366]
[1773199484459,2.91964992,85.597,85.551,4.4635366]
[1773199484664,2.91964992,85.596,85.561,4.47266346]
[1773199484861,2.91964992,85.595,85.561,4.47266346]
[1773199485060,2.91964992,85.594,85.561,4.47266346]
[1773199485261,2.91940603,85.593,85.561,4.47266346]
[1773199485464,2.62019461,85.61,85.561,4.47266346]
[1773199485763,2.91940603,85.609,85.571,4.47266346]
[1773199485961,2.91940603,85.608,85.571,4.47266346]
[1773199486262,2.91940603,85.607,85.571,4.47266346]
[1773199486462,10.512,85.605,85.571,4.47266346]
[1773199486664,2.91940603,85.604,85.571,4.47266346]
[1773199486862,2.91940603,85.603,85.571,4.47266346]
[1773199487164,2.91940603,85.602,85.571,4.47266346]
[1773199487358,2.91940603,85.601,85.571,4.47266346]
[1773199487560,2.91940603,85.6,85.571,4.47266346]
[1773199487759,2.91940603,85.599,85.571,4.47266346]
[1773199487965,2.91940603,85.598,85.571,4.47266346]
[1773199488166,2.91940603,85.597,85.571,4.47266346]
[1773199488464,2.91940603,85.596,85.571,4.47266346]
[1773199488664,2.91940603,85.595,85.571,4.47266346]
[1773199488866,10.512,85.605,85.571,4.47266346]
[1773199489566,2.91940204,85.604,85.571,4.47266346]
[1773199489767,10.514,85.594,85.551,4.48012976]
[1773199489968,2.62019461,85.6,85.551,4.48012976]
[1773199491661,2.62019461,85.57,85.528,4.48013691]
[1773199491861,2.92053795,85.569,85.528,4.48013691]
[1773199492062,2.92053795,85.568,85.528,4.48013691]
[1773199492266,2.92053795,85.567,85.528,4.48013691]
[1773199492464,2.92053795,85.566,85.528,4.48013691]
[1773199492659,2.92053795,85.565,85.528,4.48013691]
[1773199492859,2.92053795,85.564,85.528,4.48013691]
[1773199493167,2.62019461,85.58,85.531,4.48021908]
[1773199493366,2.92028588,85.579,85.531,4.48021908]
[1773199493566,2.92028588,85.578,85.531,4.48021908]
[1773199493868,2.92028588,85.577,85.531,4.48021908]
[1773199494070,2.62019461,85.57,85.52,4.48021908]
[1773199494367,2.62019461,85.56,85.52,4.48021908]
[1773199494669,2.92028588,85.559,85.511,4.46549045]
[1773199494970,2.92028588,85.558,85.511,4.46549045]
[1773199495169,10.518,85.556,85.511,4.46549045]
[1773199495371,2.92028588,85.555,85.511,4.46549045]
[1773199495568,2.92028588,85.554,85.511,4.46549045]
[1773199495767,2.92028588,85.553,85.511,4.46549045]
[1773199495970,2.92028588,85.552,85.511,4.46549045]
[1773199496166,10.518,85.556,85.511,4.46549045]
[1773199496472,2.92098214,85.555,85.511,4.46549045]
[1773199496670,2.92098214,85.554,85.511,4.46549045]
[1773199496971,2.92098214,85.553,85.511,4.46549045]
[1773199497170,10.518,85.556,85.52,2.62019461]
[1773199497373,2.9209816,85.555,85.52,2.62019461]
[1773199497667,10.518,85.556,85.52,2.62019461]
[1773199497873,2.92098041,85.555,85.52,2.62019461]
[1773199498173,10.518,85.556,85.52,2.62019461]
[1773199498567,10.518,85.556,85.511,4.46549045]
[1773199498969,10.517,85.565,85.511,4.46549045]
[1773199499173,2.62019461,85.56,85.511,4.46549045]
[1773199499674,10.517,85.565,85.468,37.08379727]
[1773199499675,10.517,85.565,85.521,4.49780115]
[1773199500573,10.516,85.574,85.521,4.49780115]
[1773199500770,2.62019461,85.59,85.541,4.50584815]
[1773199501076,2.92038251,85.589,85.541,4.50584815]
[1773199501268,2.92038251,85.588,85.541,4.50584815]
[1773199501472,2.92038251,85.587,85.541,4.50584815]
[1773199501773,10.515,85.584,85.541,4.50584815]
[1773199502167,2.92037903,85.583,85.541,4.50584815]
[1773199502372,2.92037903,85.582,85.55,2.62019461]
[1773199502573,2.92037903,85.581,85.55,2.62019461]
[1773199502875,2.92037903,85.58,85.541,4.50584815]
[1773199503175,2.92037903,85.579,85.541,4.50584815]
[1773199503376,10.515,85.586,85.541,4.50584815]
[1773199503575,2.92037873,85.585,85.541,4.50584815]
[1773199503777,2.92037873,85.584,85.541,4.50584815]
[1773199504077,2.92037873,85.583,85.541,4.50584815]
[1773199504279,10.515,85.586,85.541,4.50584815]
[1773199504280,2.92037873,85.582,85.541,4.50584815]
[1773199504480,2.92037873,85.581,85.541,4.50584815]
[1773199504678,2.92037873,85.58,85.541,4.50584815]
[1773199504874,2.92037873,85.579,85.541,4.50584815]
[1773199505080,10.515,85.586,85.541,4.50584815]
[1773199505379,10.515,85.584,85.541,4.50584815]
[1773199505571,2.92037855,85.583,85.541,4.50584815]
[1773199505770,2.92037855,85.582,85.541,4.50584815]
[1773199505976,2.92037855,85.581,85.541,4.50584815]
[1773199506175,2.92037855,85.58,85.541,4.50584815]
[1773199506370,10.515,85.584,85.541,4.50584815]
[1773199506579,2.92037855,85.583,85.541,4.50584815]
[1773199506777,2.92037855,85.582,85.541,4.50584815]
[1773199506980,2.92037855,85.581,85.541,4.50584815]
[1773199507182,2.92037855,85.58,85.541,4.50584815]
[1773199507382,10.515,85.584,85.541,4.50584815]
[1773199507682,10.515,85.582,85.541,4.50584815]
[1773199507882,2.92037821,85.581,85.541,4.50584815]
[1773199508081,2.92037821,85.58,85.541,4.50584815]
[1773199508381,2.92037821,85.579,85.541,4.50584815]
[1773199508583,2.92037821,85.578,85.541,4.50584815]
[1773199508783,2.92037821,85.577,85.541,4.50584815]
[1773199508983,10.517,85.568,85.53,7.16626051]
[1773199509183,10.517,85.568,85.53,4.54499704]
[1773199513876,2.62126347,85.58,85.541,4.54807024]
[1773199514580,10.516,85.574,85.541,4.54807024]
[1773199514789,2.62126347,85.59,85.541,4.54807024]
[1773199514978,2.92013258,85.589,85.541,4.54807024]
[1773199515283,2.62126347,85.59,85.541,4.54807024]
[1773199515284,2.92013258,85.588,85.541,4.54807024]
[1773199515485,2.92013258,85.587,85.541,4.54807024]
[1773199515789,2.62126347,85.58,85.541,4.54807024]
[1773199516486,10.516,85.579,85.541,4.54807024]
[1773199517382,10.514,85.589,85.541,4.54807024]
[1773199517588,2.92004613,85.588,85.541,4.54807024]
[1773199517782,2.62126347,85.59,85.541,4.54807024]
[1773199517783,2.92004613,85.587,85.541,4.54807024]
[1773199517988,10.516,85.576,85.541,4.54807024]
[1773199518986,2.62126347,85.58,85.541,4.54807024]
[1773199519382,10.515,85.584,85.541,4.54807024]
[1773199519686,10.515,85.581,85.541,4.54807024]
[1773199519886,2.92018242,85.58,85.541,4.54807024]
[1773199520085,2.92018242,85.579,85.541,4.54807024]
[1773199520288,2.92018242,85.578,85.541,4.54807024]
[1773199520486,2.92018242,85.577,85.541,4.54807024]
[1773199520682,2.62126347,85.59,85.541,4.54807024]
[1773199520888,2.92018387,85.589,85.541,4.54807024]
[1773199521087,2.92018387,85.588,85.541,4.54807024]
[1773199521389,10.516,85.576,85.541,4.54807024]
[1773199524181,2.92018189,85.575,85.541,4.54807024]
[1773199524381,10.516,85.576,85.541,4.54807024]
[1773199524687,2.92018189,85.575,85.541,4.54807024]
[1773199524991,10.516,85.576,85.541,4.54807024]
[1773199525190,2.92018189,85.575,85.541,4.54807024]
[1773199525391,10.516,85.576,85.541,4.54807024]
[1773199525597,10.517,85.57,85.53,2.62126347]
[1773199527288,2.92038582,85.569,85.529,4.57460983]
[1773199527484,2.62126347,85.57,85.529,4.57460983]
[1773199527687,2.9203878,85.569,85.529,4.57460983]
[1773199527895,2.62126347,85.57,85.529,4.57460983]
[1773199528091,2.92038797,85.569,85.529,4.57460983]
[1773199528387,2.92038797,85.568,85.529,4.57460983]
[1773199528588,2.62126347,85.57,85.529,4.57460983]